[Event "*** Titled Tuesday 3|2 Blitz"]
[Site "Chess.com"]
[Date "2015.09.01"]
[Round "6"]
[White "stepanosinovsky"]
[Black "HansCoolNiemann"]
[Result "0-1"]
[WhiteElo "2282"]
[BlackElo "2075"]
[TimeControl "180+2"]
[EndTime "12:13:28 PDT"]
[Termination "HansCoolNiemann won on time"]

1. Nf3 {[%clk 0:03:01.9]} 1... Nf6 {[%clk 0:03:00.4]} 2. g3 {[%clk 0:03:02.6]}
2... g6 {[%clk 0:03:00.9]} 3. Bg2 {[%clk 0:03:03.7]} 3... Bg7 {[%clk 0:03:02.2]}
4. O-O {[%clk 0:03:05.6]} 4... O-O {[%clk 0:03:02.5]} 5. d3 {[%clk 0:03:07.5]}
5... d5 {[%clk 0:03:03.4]} 6. Nbd2 {[%clk 0:03:08.8]} 6... c5 {[%clk 0:03:04.4]}
7. e4 {[%clk 0:03:09.9]} 7... Nc6 {[%clk 0:03:05.7]} 8. Re1 {[%clk 0:03:09.8]}
8... e5 {[%clk 0:03:06.4]} 9. c3 {[%clk 0:03:08.3]} 9... h6 {[%clk 0:03:06.2]}
10. Qb3 {[%clk 0:03:02.9]} 10... dxe4 {[%clk 0:02:20.2]} 11. dxe4 {[%clk
0:02:57.7]} 11... b6 {[%clk 0:02:18.8]} 12. Nf1 {[%clk 0:02:42.7]} 12... Be6
{[%clk 0:02:17]} 13. Qc2 {[%clk 0:02:43.2]} 13... Qc7 {[%clk 0:02:15.4]} 14. Ne3
{[%clk 0:02:41.9]} 14... Rfd8 {[%clk 0:02:15]} 15. a4 {[%clk 0:02:23.7]} 15...
Na5 {[%clk 0:02:14.4]} 16. Nd2 {[%clk 0:02:24]} 16... Rd7 {[%clk 0:02:07.1]} 17.
b4 {[%clk 0:01:36.7]} 17... cxb4 {[%clk 0:02:01.2]} 18. cxb4 {[%clk 0:01:37.8]}
18... Qxc2 {[%clk 0:01:58.3]} 19. Nxc2 {[%clk 0:01:39.7]} 19... Nb3 {[%clk
0:01:59.3]} 20. Nxb3 {[%clk 0:01:40.2]} 20... Bxb3 {[%clk 0:02:01.2]} 21. Ne3
{[%clk 0:01:39.5]} 21... Rc8 {[%clk 0:01:59]} 22. Bh3 {[%clk 0:01:22.1]} 22...
Be6 {[%clk 0:01:57.7]} 23. Bxe6 {[%clk 0:01:19.2]} 23... fxe6 {[%clk 0:01:59.6]}
24. f3 {[%clk 0:01:12.6]} 24... Bf8 {[%clk 0:01:59]} 25. Rb1 {[%clk 0:00:58.1]}
25... Rd3 {[%clk 0:01:56.3]} 26. Kf1 {[%clk 0:00:45.6]} 26... Rd4 {[%clk
0:01:47.4]} 27. Bb2 {[%clk 0:00:18.4]} 27... Rxb4 {[%clk 0:01:47.5]} 28. Bxe5
{[%clk 0:00:19]} 28... Nd7 {[%clk 0:01:47.3]} 29. Rxb4 {[%clk 0:00:10.4]} 29...
Bxb4 {[%clk 0:01:46.6]} 30. Rb1 {[%clk 0:00:10.7]} 30... Nxe5 {[%clk 0:01:07.6]}
31. Rxb4 {[%clk 0:00:11.2]} 31... Nxf3 {[%clk 0:01:09.1]} 32. a5 {[%clk
0:00:11.4]} 32... bxa5 {[%clk 0:01:05]} 33. Rb7 {[%clk 0:00:12.3]} 33... Nd2+
{[%clk 0:01:06.4]} 34. Ke2 {[%clk 0:00:12.2]} 34... Nxe4 {[%clk 0:01:07.9]} 35.
Rxa7 {[%clk 0:00:12.1]} 35... Rc5 {[%clk 0:01:06.9]} 36. Kd3 {[%clk 0:00:11.9]}
36... Ng5 {[%clk 0:00:59.9]} 37. Ng4 {[%clk 0:00:08.2]} 37... Nf7 {[%clk
0:00:58.1]} 38. Kd4 {[%clk 0:00:07.3]} 38... Rd5+ {[%clk 0:00:57.8]} 39. Ke4
{[%clk 0:00:06.4]} 39... Rf5 {[%clk 0:00:54.6]} 0-1

[Event "*** Titled Tuesday 3|2 Blitz"]
[Site "Chess.com"]
[Date "2015.09.01"]
[Round "6"]
[White "Hafez_Bakr"]
[Black "kikydu96"]
[Result "0-1"]
[WhiteElo "1726"]
[BlackElo "2171"]
[TimeControl "180+2"]
[EndTime "12:13:49 PDT"]
[Termination "kikydu96 won by resignation"]

1. c4 {[%clk 0:03:01.9]} 1... e5 {[%clk 0:02:55.3]} 2. Nf3 {[%clk 0:03:03.8]}
2... Nc6 {[%clk 0:02:50.5]} 3. d3 {[%clk 0:03:04.4]} 3... f5 {[%clk 0:02:49.5]}
4. g3 {[%clk 0:03:04.7]} 4... Nf6 {[%clk 0:02:50.7]} 5. Bg2 {[%clk 0:03:05.2]}
5... Bc5 {[%clk 0:02:51.7]} 6. O-O {[%clk 0:03:05]} 6... O-O {[%clk 0:02:52.7]}
7. Nc3 {[%clk 0:03:06.1]} 7... d6 {[%clk 0:02:53.5]} 8. Bg5 {[%clk 0:03:06.2]}
8... a6 {[%clk 0:02:54.3]} 9. Nd5 {[%clk 0:03:06.5]} 9... Be6 {[%clk 0:02:54.9]}
10. Nxf6+ {[%clk 0:03:07.1]} 10... gxf6 {[%clk 0:02:56.1]} 11. Bh6 {[%clk
0:03:08.1]} 11... Rf7 {[%clk 0:02:57.4]} 12. a3 {[%clk 0:03:00.5]} 12... e4
{[%clk 0:02:58]} 13. Nh4 {[%clk 0:02:58.4]} 13... d5 {[%clk 0:02:53.6]} 14. cxd5
{[%clk 0:02:57.6]} 14... Qxd5 {[%clk 0:02:50.3]} 15. Rc1 {[%clk 0:02:58.1]}
15... Bf8 {[%clk 0:02:50.2]} 16. Bxf8 {[%clk 0:02:55.9]} 16... Rfxf8 {[%clk
0:02:46.3]} 17. dxe4 {[%clk 0:02:56.3]} 17... fxe4 {[%clk 0:02:46]} 18. Qc2
{[%clk 0:02:52]} 18... f5 {[%clk 0:02:45.2]} 19. Rfd1 {[%clk 0:02:51.9]} 19...
Qe5 {[%clk 0:02:40.8]} 20. e3 {[%clk 0:02:47.4]} 20... Rad8 {[%clk 0:02:35.2]}
21. Bf1 {[%clk 0:02:47.4]} 21... Rd6 {[%clk 0:02:28.2]} 22. Rxd6 {[%clk
0:02:47.4]} 22... cxd6 {[%clk 0:02:27.3]} 23. Ng2 {[%clk 0:02:47.4]} 23... d5
{[%clk 0:02:26.7]} 24. Nf4 {[%clk 0:02:47.9]} 24... Bf7 {[%clk 0:02:28.2]} 25.
b4 {[%clk 0:02:41.9]} 25... d4 {[%clk 0:02:29]} 26. exd4 {[%clk 0:02:42]} 26...
Nxd4 {[%clk 0:02:28.6]} 27. Qc3 {[%clk 0:02:38.7]} 27... b5 {[%clk 0:02:01.2]}
28. Kg2 {[%clk 0:02:37.1]} 28... Bd5 {[%clk 0:02:00.3]} 29. Nxd5 {[%clk
0:02:30.7]} 29... Qxd5 {[%clk 0:02:00.8]} 30. Qe3 {[%clk 0:02:26.9]} 30... f4
{[%clk 0:01:54.9]} 31. gxf4 {[%clk 0:02:25.6]} 31... Nf5 {[%clk 0:01:56.2]} 32.
Qc5 {[%clk 0:02:23.1]} 32... Qd2 {[%clk 0:01:45.6]} 33. a4 {[%clk 0:02:11.4]}
33... Qxf4 {[%clk 0:01:39.3]} 34. Kh1 {[%clk 0:02:07.9]} 34... Nh4 {[%clk
0:00:56.3]} 35. Bg2 {[%clk 0:01:58.7]} 35... Nxg2 {[%clk 0:00:52.4]} 36. Rg1
{[%clk 0:01:57.3]} 36... Kh8 {[%clk 0:00:37]} 37. Rxg2 {[%clk 0:01:57.8]} 37...
bxa4 {[%clk 0:00:29.4]} 38. Qd4+ {[%clk 0:01:58]} 38... Qf6 {[%clk 0:00:30.3]}
39. Qxe4 {[%clk 0:01:56.8]} 39... a3 {[%clk 0:00:30.3]} 40. Qd5 {[%clk
0:01:49.8]} 40... Rd8 {[%clk 0:00:24.5]} 41. Qb3 {[%clk 0:01:45.7]} 41... Qb2
{[%clk 0:00:23.6]} 42. Qg3 {[%clk 0:01:40.5]} 42... a2 {[%clk 0:00:22.4]} 43.
Rg1 {[%clk 0:01:40.5]} 43... a1=Q {[%clk 0:00:21.2]} 44. Rxa1 {[%clk 0:01:39.6]}
44... Qxa1+ {[%clk 0:00:22.8]} 45. Kg2 {[%clk 0:01:35.2]} 45... Rg8 {[%clk
0:00:23.6]} 46. h4 {[%clk 0:01:37.1]} 46... Qd4 {[%clk 0:00:21.6]} 47. Kh3
{[%clk 0:01:35.2]} 47... Rxg3+ {[%clk 0:00:21]} 48. fxg3 {[%clk 0:01:35.7]}
48... Qxb4 {[%clk 0:00:22.6]} 49. g4 {[%clk 0:01:36.9]} 49... Qc3+ {[%clk
0:00:22.8]} 0-1

[Event "*** Titled Tuesday 3|2 Blitz"]
[Site "Chess.com"]
[Date "2015.09.01"]
[Round "6"]
[White "bugsbunny444"]
[Black "rikyshi"]
[Result "1-0"]
[WhiteElo "2298"]
[BlackElo "2090"]
[TimeControl "180+2"]
[EndTime "12:14:06 PDT"]
[Termination "bugsbunny444 won by resignation"]

1. Nf3 {[%clk 0:03:01.9]} 1... Nf6 {[%clk 0:02:55.9]} 2. c4 {[%clk 0:03:03]}
2... e6 {[%clk 0:02:54.8]} 3. g3 {[%clk 0:03:04.2]} 3... d5 {[%clk 0:02:55.6]}
4. Bg2 {[%clk 0:03:05.8]} 4... c6 {[%clk 0:02:56.7]} 5. O-O {[%clk 0:03:07.4]}
5... Be7 {[%clk 0:02:57.2]} 6. b3 {[%clk 0:03:08.3]} 6... O-O {[%clk 0:02:58.4]}
7. d4 {[%clk 0:03:06.8]} 7... a5 {[%clk 0:02:59.4]} 8. Nc3 {[%clk 0:03:08]} 8...
Nbd7 {[%clk 0:02:58.5]} 9. Qc2 {[%clk 0:03:08.9]} 9... b6 {[%clk 0:02:55.5]} 10.
e4 {[%clk 0:03:09.2]} 10... dxe4 {[%clk 0:02:55.4]} 11. Nxe4 {[%clk 0:03:09.9]}
11... Bb7 {[%clk 0:02:57]} 12. Rd1 {[%clk 0:02:52.1]} 12... Nxe4 {[%clk
0:02:51.1]} 13. Qxe4 {[%clk 0:02:52.8]} 13... Bf6 {[%clk 0:02:52.4]} 14. Bf4
{[%clk 0:02:40.9]} 14... Qe7 {[%clk 0:02:31.6]} 15. Ne5 {[%clk 0:02:36.7]} 15...
Bxe5 {[%clk 0:02:30.9]} 16. dxe5 {[%clk 0:02:29.6]} 16... Nc5 {[%clk 0:02:30.4]}
17. Qe2 {[%clk 0:02:13.7]} 17... Rfd8 {[%clk 0:02:23.8]} 18. Rd6 {[%clk
0:02:01.1]} 18... Rxd6 {[%clk 0:01:55.7]} 19. exd6 {[%clk 0:02:02.5]} 19... Qd7
{[%clk 0:01:57.2]} 20. Rd1 {[%clk 0:01:56.5]} 20... Na6 {[%clk 0:01:55.2]} 21.
Be3 {[%clk 0:01:42.7]} 21... c5 {[%clk 0:01:45.3]} 22. Bxb7 {[%clk 0:01:43.5]}
22... Qxb7 {[%clk 0:01:47.2]} 23. d7 {[%clk 0:01:45.4]} 23... Rd8 {[%clk
0:01:46.8]} 24. Bg5 {[%clk 0:00:38.4]} 24... Rxd7 {[%clk 0:01:44.6]} 25. Rxd7
{[%clk 0:00:40.1]} 25... Qxd7 {[%clk 0:01:44.9]} 26. Qe5 {[%clk 0:00:40.5]}
26... f6 {[%clk 0:01:41.2]} 27. Qe4 {[%clk 0:00:31.3]} 27... Nb4 {[%clk
0:01:27.5]} 28. Be3 {[%clk 0:00:18]} 28... Nxa2 {[%clk 0:01:25.9]} 29. Qa8+
{[%clk 0:00:13]} 29... Kf7 {[%clk 0:01:25.4]} 30. h4 {[%clk 0:00:10.1]} 30...
Nb4 {[%clk 0:01:06.5]} 31. h5 {[%clk 0:00:11.3]} 31... Qd1+ {[%clk 0:01:04.8]}
32. Kg2 {[%clk 0:00:12]} 32... Qxh5 {[%clk 0:01:02.7]} 33. Qb7+ {[%clk
0:00:11.8]} 33... Kg6 {[%clk 0:01:03.7]} 34. Qxb6 {[%clk 0:00:12.4]} 34... Nd3
{[%clk 0:00:58.2]} 35. Qxe6 {[%clk 0:00:09.7]} 35... Ne1+ {[%clk 0:00:51.5]} 36.
Kf1 {[%clk 0:00:10.2]} 36... Nc2 {[%clk 0:00:24.3]} 37. Qe8+ {[%clk 0:00:10.4]}
37... Kf5 {[%clk 0:00:20.7]} 38. Qxh5+ {[%clk 0:00:11.4]} 38... Ke4 {[%clk
0:00:22.6]} 39. Qxh7+ {[%clk 0:00:12.4]} 1-0

[Event "*** Titled Tuesday 3|2 Blitz"]
[Site "Chess.com"]
[Date "2015.09.01"]
[Round "6"]
[White "BIG_Pirate"]
[Black "PawelCzarnota"]
[Result "0-1"]
[WhiteElo "2206"]
[BlackElo "2429"]
[TimeControl "180+2"]
[EndTime "12:14:24 PDT"]
[Termination "PawelCzarnota won by resignation"]

1. Nf3 {[%clk 0:02:59.7]} 1... c5 {[%clk 0:03:00.3]} 2. c4 {[%clk 0:03:00.6]}
2... Nc6 {[%clk 0:03:00.4]} 3. Nc3 {[%clk 0:03:01.8]} 3... e5 {[%clk 0:03:00.4]}
4. g3 {[%clk 0:03:02.8]} 4... f5 {[%clk 0:03:01]} 5. d3 {[%clk 0:03:03.4]} 5...
Nf6 {[%clk 0:03:01.1]} 6. Bg2 {[%clk 0:03:04.6]} 6... g6 {[%clk 0:03:02.4]} 7.
O-O {[%clk 0:03:05.4]} 7... Bg7 {[%clk 0:03:03.8]} 8. Bg5 {[%clk 0:03:05.3]}
8... h6 {[%clk 0:03:01.2]} 9. Bxf6 {[%clk 0:03:05.3]} 9... Qxf6 {[%clk
0:03:01.6]} 10. a3 {[%clk 0:02:57.5]} 10... O-O {[%clk 0:03:00.3]} 11. Rb1
{[%clk 0:02:57.7]} 11... d6 {[%clk 0:02:47.2]} 12. Nd5 {[%clk 0:02:51]} 12...
Qf7 {[%clk 0:02:47.4]} 13. b4 {[%clk 0:02:51.2]} 13... Kh7 {[%clk 0:02:44.6]}
14. bxc5 {[%clk 0:02:47.5]} 14... dxc5 {[%clk 0:02:46.5]} 15. Nd2 {[%clk
0:02:48.5]} 15... Qd7 {[%clk 0:02:11.5]} 16. Re1 {[%clk 0:02:40.2]} 16... b6
{[%clk 0:02:11.2]} 17. Nb3 {[%clk 0:02:31.1]} 17... Bb7 {[%clk 0:02:10.2]} 18.
a4 {[%clk 0:02:27.6]} 18... Ne7 {[%clk 0:01:41.1]} 19. Nxe7 {[%clk 0:02:24.8]}
19... Qxe7 {[%clk 0:01:42.1]} 20. Bxb7 {[%clk 0:02:23.6]} 20... Qxb7 {[%clk
0:01:44]} 21. Nxc5 {[%clk 0:02:24.7]} 21... Qc6 {[%clk 0:01:45.3]} 22. Na6
{[%clk 0:02:20.8]} 22... f4 {[%clk 0:01:43]} 23. Nb4 {[%clk 0:02:21.1]} 23...
Qe6 {[%clk 0:01:43.6]} 24. Nd5 {[%clk 0:02:22]} 24... Rf7 {[%clk 0:01:42.6]} 25.
Kg2 {[%clk 0:02:20.5]} 25... Raf8 {[%clk 0:01:42.1]} 26. f3 {[%clk 0:02:21.7]}
26... Qf5 {[%clk 0:01:30.5]} 27. Nc3 {[%clk 0:02:20.7]} 27... h5 {[%clk
0:01:29.3]} 28. Ne4 {[%clk 0:02:21.3]} 28... g5 {[%clk 0:01:27.5]} 29. Rb5
{[%clk 0:02:04.8]} 29... g4 {[%clk 0:01:24.1]} 30. Rf1 {[%clk 0:01:52]} 30...
Qg6 {[%clk 0:01:17.8]} 31. a5 {[%clk 0:01:39.6]} 31... h4 {[%clk 0:01:18.5]} 32.
axb6 {[%clk 0:01:23.8]} 32... axb6 {[%clk 0:01:19]} 33. Qb3 {[%clk 0:01:24.1]}
33... h3+ {[%clk 0:00:59.3]} 34. Kg1 {[%clk 0:01:19.3]} 34... fxg3 {[%clk
0:01:00]} 35. Rxb6 {[%clk 0:01:09.6]} 35... gxh2+ {[%clk 0:00:25.8]} 36. Kxh2
{[%clk 0:01:11.5]} 36... Qf5 {[%clk 0:00:26.6]} 37. Rb7 {[%clk 0:00:54.5]} 37...
Qf4+ {[%clk 0:00:26.9]} 38. Ng3 {[%clk 0:00:35.5]} 38... e4 {[%clk 0:00:27.8]}
39. Rxf7 {[%clk 0:00:35.7]} 39... Rxf7 {[%clk 0:00:24]} 40. fxe4 {[%clk
0:00:35.4]} 40... Qxf1 {[%clk 0:00:17.9]} 41. Nxf1 {[%clk 0:00:36.2]} 41... Rxf1
{[%clk 0:00:19.8]} 42. Qb7 {[%clk 0:00:32.4]} 42... Rf2+ {[%clk 0:00:19.6]} 43.
Kg1 {[%clk 0:00:22.8]} 43... g3 {[%clk 0:00:20.4]} 44. Qd7 {[%clk 0:00:09.6]}
44... h2+ {[%clk 0:00:20.6]} 45. Kh1 {[%clk 0:00:10.7]} 45... Rf1+ {[%clk
0:00:22]} 0-1

[Event "*** Titled Tuesday 3|2 Blitz"]
[Site "Chess.com"]
[Date "2015.09.01"]
[Round "6"]
[White "alturas_pacificas"]
[Black "ItalianMachine"]
[Result "0-1"]
[WhiteElo "2001"]
[BlackElo "2199"]
[TimeControl "180+2"]
[EndTime "12:14:31 PDT"]
[Termination "ItalianMachine won by checkmate"]

1. d4 {[%clk 0:03:01.9]} 1... Nf6 {[%clk 0:02:57.5]} 2. Bf4 {[%clk 0:03:02]}
2... g6 {[%clk 0:02:59.2]} 3. e3 {[%clk 0:03:01.1]} 3... Bg7 {[%clk 0:03:00.5]}
4. Nf3 {[%clk 0:02:59.7]} 4... d6 {[%clk 0:03:01]} 5. Be2 {[%clk 0:03:00.8]}
5... Nh5 {[%clk 0:03:01.9]} 6. Bg5 {[%clk 0:03:01.4]} 6... h6 {[%clk 0:03:02.4]}
7. Bh4 {[%clk 0:03:02.9]} 7... g5 {[%clk 0:03:03.2]} 8. Nfd2 {[%clk 0:03:04.2]}
8... Nf6 {[%clk 0:02:56.9]} 9. Bg3 {[%clk 0:03:05.4]} 9... c6 {[%clk 0:02:58]}
10. c4 {[%clk 0:03:05.3]} 10... Na6 {[%clk 0:02:51.5]} 11. Nc3 {[%clk
0:03:04.8]} 11... h5 {[%clk 0:02:44]} 12. h4 {[%clk 0:03:02]} 12... g4 {[%clk
0:02:41.2]} 13. a3 {[%clk 0:02:53.5]} 13... Bf5 {[%clk 0:02:34.4]} 14. b4 {[%clk
0:02:44.2]} 14... Nc7 {[%clk 0:02:34.3]} 15. e4 {[%clk 0:02:27.3]} 15... Bg6
{[%clk 0:02:34.9]} 16. O-O {[%clk 0:01:45.6]} 16... Nd7 {[%clk 0:02:32.1]} 17.
Nb3 {[%clk 0:01:42.8]} 17... e5 {[%clk 0:02:29]} 18. d5 {[%clk 0:01:34.7]} 18...
Nf6 {[%clk 0:02:20.3]} 19. Bd3 {[%clk 0:01:03.6]} 19... Qe7 {[%clk 0:02:07.2]}
20. Rc1 {[%clk 0:00:55.2]} 20... O-O {[%clk 0:02:05.2]} 21. f3 {[%clk
0:00:46.1]} 21... gxf3 {[%clk 0:02:04.6]} 22. Qxf3 {[%clk 0:00:46.4]} 22... Ng4
{[%clk 0:02:05.2]} 23. Rc2 {[%clk 0:00:39.4]} 23... Bh6 {[%clk 0:01:49.2]} 24.
Re2 {[%clk 0:00:36.3]} 24... Ne8 {[%clk 0:01:50.1]} 25. dxc6 {[%clk 0:00:34.8]}
25... bxc6 {[%clk 0:01:50.1]} 26. c5 {[%clk 0:00:36.1]} 26... Ng7 {[%clk
0:01:46.5]} 27. cxd6 {[%clk 0:00:34.8]} 27... Qxd6 {[%clk 0:01:47.3]} 28. Bc4
{[%clk 0:00:34.8]} 28... Kh7 {[%clk 0:01:46.9]} 29. Rd1 {[%clk 0:00:35.2]} 29...
Qe7 {[%clk 0:01:45.9]} 30. Nc5 {[%clk 0:00:36.2]} 30... f5 {[%clk 0:01:44.8]}
31. exf5 {[%clk 0:00:35.3]} 31... Nxf5 {[%clk 0:01:45]} 32. Be1 {[%clk
0:00:25.5]} 32... Nd4 {[%clk 0:01:40]} 33. Qg3 {[%clk 0:00:17.3]} 33... Nxe2+
{[%clk 0:01:39.4]} 34. Bxe2 {[%clk 0:00:19.2]} 34... Be3+ {[%clk 0:01:40.1]} 35.
Kh1 {[%clk 0:00:18.3]} 35... Bf4 {[%clk 0:01:42]} 36. Qf3 {[%clk 0:00:15.2]}
36... Bd2 {[%clk 0:01:24.1]} 37. Qxc6 {[%clk 0:00:13.1]} 37... Bxe1 {[%clk
0:01:24.5]} 38. Rd7 {[%clk 0:00:11.4]} 38... Qxd7 {[%clk 0:01:10.5]} 39. Qxd7+
{[%clk 0:00:13.3]} 39... Rf7 {[%clk 0:01:11.4]} 40. Qd1 {[%clk 0:00:14.4]} 40...
Bxc3 {[%clk 0:01:11.1]} 41. Bxg4 {[%clk 0:00:13]} 41... hxg4 {[%clk 0:01:12.1]}
42. Qxg4 {[%clk 0:00:12.1]} 42... Rf4 {[%clk 0:01:07.8]} 43. Qd7+ {[%clk
0:00:11.7]} 43... Kh6 {[%clk 0:01:08.5]} 44. g3 {[%clk 0:00:11.2]} 44... Rd4
{[%clk 0:01:04.9]} 45. Qc6 {[%clk 0:00:09.5]} 45... Rf8 {[%clk 0:01:04.7]} 46.
Kg2 {[%clk 0:00:09.3]} 46... Rd2+ {[%clk 0:01:04.6]} 47. Kh3 {[%clk 0:00:08.6]}
47... Bd4 {[%clk 0:00:53.8]} 48. Ne6 {[%clk 0:00:09.1]} 48... Rf6 {[%clk
0:00:46.6]} 49. g4 {[%clk 0:00:06.5]} 49... Rd3+ {[%clk 0:00:42.5]} 50. Kg2
{[%clk 0:00:06.5]} 50... Rf2+ {[%clk 0:00:43.8]} 51. Kh1 {[%clk 0:00:06.5]}
51... Rd1# {[%clk 0:00:45.7]} 0-1

[Event "*** Titled Tuesday 3|2 Blitz"]
[Site "Chess.com"]
[Date "2015.09.01"]
[Round "6"]
[White "AnastasiaProtopopova"]
[Black "myaccount88"]
[Result "0-1"]
[WhiteElo "1778"]
[BlackElo "2145"]
[TimeControl "180+2"]
[EndTime "12:14:33 PDT"]
[Termination "myaccount88 won by resignation"]

1. Nf3 {[%clk 0:03:01.9]} 1... g6 {[%clk 0:02:50.8]} 2. c4 {[%clk 0:03:02.2]}
2... Bg7 {[%clk 0:02:52]} 3. d4 {[%clk 0:03:01.7]} 3... c5 {[%clk 0:02:52.9]} 4.
d5 {[%clk 0:02:59.4]} 4... Nf6 {[%clk 0:02:51.1]} 5. Nc3 {[%clk 0:02:59.5]} 5...
O-O {[%clk 0:02:50.2]} 6. e4 {[%clk 0:03:00.1]} 6... d6 {[%clk 0:02:50.8]} 7.
Be2 {[%clk 0:02:59.7]} 7... e6 {[%clk 0:02:51.6]} 8. O-O {[%clk 0:02:58.9]} 8...
exd5 {[%clk 0:02:51.2]} 9. cxd5 {[%clk 0:02:52.6]} 9... Bg4 {[%clk 0:02:51.5]}
10. Nd2 {[%clk 0:02:47.8]} 10... Bxe2 {[%clk 0:02:50.7]} 11. Qxe2 {[%clk
0:02:49.3]} 11... Nbd7 {[%clk 0:02:48.9]} 12. Nc4 {[%clk 0:02:48.5]} 12... Nb6
{[%clk 0:02:49.7]} 13. f4 {[%clk 0:02:40]} 13... Re8 {[%clk 0:02:44.6]} 14. Nxb6
{[%clk 0:02:40]} 14... Qxb6 {[%clk 0:02:44.7]} 15. Qc4 {[%clk 0:02:40.7]} 15...
Qb4 {[%clk 0:02:45]} 16. Qxb4 {[%clk 0:01:51.9]} 16... cxb4 {[%clk 0:02:44.9]}
17. Nb5 {[%clk 0:01:53.4]} 17... Nxe4 {[%clk 0:02:20.9]} 18. Nc7 {[%clk
0:01:20.1]} 18... Bd4+ {[%clk 0:02:19.8]} 19. Kh1 {[%clk 0:01:20.2]} 19... Nf2+
{[%clk 0:02:20.4]} 20. Kg1 {[%clk 0:01:20.9]} 20... Nd3+ {[%clk 0:01:56.8]} 21.
Kh1 {[%clk 0:01:19.6]} 21... Nxc1 {[%clk 0:01:53.4]} 22. Raxc1 {[%clk
0:01:16.5]} 22... Bxb2 {[%clk 0:01:53.1]} 23. Rb1 {[%clk 0:01:15.7]} 23... Bc3
{[%clk 0:01:52.2]} 24. Nxa8 {[%clk 0:01:15.5]} 24... Rxa8 {[%clk 0:01:52.8]} 25.
Rfc1 {[%clk 0:00:57.5]} 25... Rc8 {[%clk 0:01:46.9]} 26. Kg1 {[%clk 0:00:53.9]}
26... Rc5 {[%clk 0:01:42.8]} 27. Rd1 {[%clk 0:00:53.8]} 27... a5 {[%clk
0:01:39.6]} 28. Kf1 {[%clk 0:00:51.1]} 28... Rc4 {[%clk 0:01:33.1]} 29. g3
{[%clk 0:00:49.2]} 29... h5 {[%clk 0:01:30.5]} 30. Kf2 {[%clk 0:00:45.1]} 30...
h4 {[%clk 0:01:30]} 31. Kf3 {[%clk 0:00:43]} 31... hxg3 {[%clk 0:01:29.3]} 32.
hxg3 {[%clk 0:00:43.6]} 32... b5 {[%clk 0:01:28.2]} 33. Rd3 {[%clk 0:00:34.1]}
33... Kg7 {[%clk 0:01:20.2]} 34. Rbd1 {[%clk 0:00:28.3]} 34... a4 {[%clk
0:01:18.8]} 35. Rc1 {[%clk 0:00:22.2]} 35... g5 {[%clk 0:01:13.1]} 36. f5 {[%clk
0:00:15]} 36... Kf6 {[%clk 0:01:12.6]} 37. g4 {[%clk 0:00:16.4]} 37... Rf4+
{[%clk 0:01:11.9]} 38. Kg3 {[%clk 0:00:17]} 38... Be5 {[%clk 0:01:12]} 39. Kh3
{[%clk 0:00:16.7]} 39... Rf2 {[%clk 0:01:07.8]} 40. Rh1 {[%clk 0:00:15.1]} 40...
Rxa2 {[%clk 0:01:06.3]} 41. Rdd1 {[%clk 0:00:12.5]} 41... b3 {[%clk 0:01:06.3]}
42. Rc1 {[%clk 0:00:09.8]} 42... Rd2 {[%clk 0:01:01.3]} 43. Rc8 {[%clk
0:00:05.9]} 43... b2 {[%clk 0:00:58]} 44. Rb8 {[%clk 0:00:06.5]} 44... Rxd5
{[%clk 0:00:58]} 45. Kg2 {[%clk 0:00:05.1]} 45... Rd2+ {[%clk 0:00:53.9]} 46.
Kf3 {[%clk 0:00:05.8]} 46... Bf4 {[%clk 0:00:36.5]} 47. Rh6+ {[%clk 0:00:03.5]}
47... Ke5 {[%clk 0:00:36.9]} 48. Re8+ {[%clk 0:00:04]} 48... Kd4 {[%clk
0:00:37.5]} 49. Rh7 {[%clk 0:00:03.8]} 49... b1=Q {[%clk 0:00:35.8]} 0-1